fUST/lending_fUST_20240826
["ID","MTS","AMOUNT","RATE_DAILY","PERIOD"]
[335975969,1724649040406,-500.0,0.00012283,2]
[335975970,1724649040418,-500.0,0.00012283,2]
[335975971,1724649040429,-500.0,0.00012283,2]
[335975973,1724649040440,-500.0,0.00012283,2]
[335975975,1724649040451,-725.5,0.00012283,2]
[335975976,1724649040461,-500.0,0.00012283,2]
[335975977,1724649040471,-500.0,0.00012283,2]
[335975978,1724649040483,-500.0,0.00012283,2]
[335975979,1724649040492,-500.0,0.00012283,2]
[335975980,1724649040502,-500.0,0.00012283,2]
[335975981,1724649040512,-500.0,0.00012283,2]
[335975982,1724649040521,-702.31,0.00012283,2]
[335975983,1724649040532,-543.32,0.00012283,2]
[335975984,1724649040746,-1152.29,0.00012283,2]
[335975985,1724649040756,-500.0,0.00012283,2]
[335975986,1724649040766,-501.28143481,0.00012283,2]
[335975987,1724649040778,-500.0,0.00012283,2]
[335975988,1724649040787,-500.0,0.00012283,2]
[335975989,1724649040797,-500.0,0.00012283,2]
[335975990,1724649040806,-598.50455051,0.00012283,2]
[335975991,1724649040816,-500.0,0.00012283,2]
[335975992,1724649040826,-500.0,0.00012283,2]
[335975993,1724649040835,-547.68,0.00012283,2]
[335975994,1724649040845,-500.0,0.00012283,2]
[335975995,1724649040855,-500.0,0.00012283,2]
[335975996,1724649040865,-1088.82,0.00012283,2]
[335975997,1724649040875,-651.93,0.00012283,2]
[335975998,1724649040885,-500.0,0.00012283,2]
[335975999,1724649040894,-500.0,0.00012283,2]
[335976000,1724649040903,-1170.43,0.00012283,2]
[335976001,1724649040912,-500.0,0.00012283,2]
[335976002,1724649040922,-500.0,0.00012283,2]
[335976003,1724649040937,-1246.65,0.00012283,2]
[335976004,1724649040947,-835.9,0.00012283,2]
[335976005,1724649040957,-503.22569739,0.00012283,2]
[335976006,1724649040966,-1121.95,0.00012283,2]
[335976007,1724649040976,-500.0,0.00012283,2]
[335976008,1724649040985,-609.68,0.00012283,2]
[335976009,1724649040995,-654.35,0.00012283,2]
[335976010,1724649041005,-660.54,0.00012283,2]
[335976011,1724649041015,-500.0,0.00012283,2]
[335976012,1724649041025,-961.85,0.00012283,2]
[335976013,1724649041034,-1056.58,0.00012283,2]
[335976014,1724649041044,-500.0,0.00012283,2]
[335976015,1724649041053,-500.0,0.00012283,2]
[335976016,1724649041063,-555.4,0.00012283,2]
[335976017,1724649041073,-517.36,0.00012283,2]
[335976018,1724649041083,-827.46,0.00012283,2]
[335976019,1724649041092,-500.0,0.00012283,2]
[335976020,1724649041102,-500.0,0.00012283,2]
[335976021,1724649041111,-500.0,0.00012283,2]
[335976022,1724649041121,-500.0,0.00012283,2]
[335976023,1724649041131,-519.04,0.00012283,2]
[335976024,1724649041142,-500.0,0.00012283,2]
[335976025,1724649041152,-830.02,0.00012283,2]
[335976026,1724649041161,-500.0,0.00012283,2]
[335976027,1724649041171,-536.42,0.00012283,2]
[335976028,1724649041180,-947.6,0.00012283,2]
[335976029,1724649041190,-500.0,0.00012283,2]
[335976030,1724649041199,-1003.14,0.00012283,2]
[335976031,1724649041208,-757.26,0.00012283,2]
[335976032,1724649041218,-500.0,0.00012283,2]
[335976033,1724649041227,-500.0,0.00012283,2]
[335976034,1724649041237,-500.0,0.00012283,2]
[335976035,1724649041247,-500.0,0.00012283,2]
[335976036,1724649041257,-500.0,0.00012283,2]
[335976037,1724649041266,-500.0,0.00012283,2]
[335976038,1724649041276,-798.89,0.00012283,2]
[335976039,1724649041285,-707.52,0.00012283,2]
[335976040,1724649041295,-1168.99,0.00012283,2]
[335976041,1724649041304,-694.96,0.00012283,2]
[335976042,1724649041313,-589.78,0.00012283,2]
[335976043,1724649041323,-863.09,0.00012283,2]
[335976044,1724649041332,-640.26,0.00012283,2]
[335976045,1724649041342,-500.0,0.00012283,2]
[335976046,1724649041358,-662.41,0.00012283,2]
[335976047,1724649041367,-500.0,0.00012283,2]
[335976048,1724649041377,-500.0,0.00012283,2]
[335976049,1724649041387,-657.06,0.00012283,2]
[335976050,1724649041397,-500.0,0.00012283,2]
[335976051,1724649041406,-1098.49,0.00012283,2]
[335976052,1724649041416,-500.0,0.00012283,2]
[335976053,1724649041425,-500.0,0.00012283,2]
[335976054,1724649041434,-500.0,0.00012283,2]
[335976055,1724649041444,-500.0,0.00012283,2]
[335976056,1724649041454,-358.58189356,0.00012283,2]
[335976057,1724649041463,-500.0,0.00012283,2]
[335976058,1724649041473,-500.0,0.00012283,2]
[335976059,1724649041482,-500.0,0.00012283,2]
[335976060,1724649041491,-500.0,0.00012283,2]
[335976061,1724649041501,-500.0,0.00012283,2]
[335976062,1724649041511,-555.54,0.00012283,2]
[335976063,1724649041520,-1037.99,0.00012283,2]
[335976064,1724649041530,-500.0,0.00012283,2]
[335976065,1724649041540,-500.0,0.00012283,2]
[335976066,1724649041553,-852.27,0.00012283,2]
[335976067,1724649041562,-500.0,0.00012283,2]
[335976068,1724649041572,-500.0,0.00012283,2]
[335976069,1724649041582,-443.21453025,0.00012283,2]
[335976070,1724649041592,-500.0,0.00012283,2]
[335976071,1724649041601,-500.0,0.00012283,2]
[335976072,1724649041611,-500.0,0.00012283,2]
[335976073,1724649041622,-500.0,0.00012283,2]
[335976074,1724649041632,-505.85,0.00012283,2]
[335976075,1724649041642,-569.31,0.00012283,2]
[335976076,1724649041653,-500.0,0.00012283,2]
[335976077,1724649041663,-500.0,0.00012283,2]
[335976078,1724649041671,-546.22,0.00012283,2]
[335976079,1724649041681,-812.37,0.00012283,2]
[335976080,1724649041691,-504.99,0.00012283,2]
[335976081,1724649041700,-500.0,0.00012283,2]
[335976082,1724649041710,-1205.5,0.00012283,2]
[335976083,1724649041719,-500.0,0.00012283,2]
[335976084,1724649041730,-500.0,0.00012283,2]
[335976085,1724649041741,-646.06,0.00012283,2]
[335976086,1724649041751,-500.0,0.00012283,2]
[335976087,1724649041762,-500.0,0.00012283,2]
[335976088,1724649041773,-500.0,0.00012283,2]
[335976089,1724649041784,-500.0,0.00012283,2]
[335976090,1724649041794,-532.7,0.00012283,2]
[335976091,1724649041804,-1099.24,0.00012283,2]
[335976092,1724649041815,-500.0,0.00012283,2]
[335976093,1724649041827,-1088.34,0.00012283,2]
[335976094,1724649041837,-500.0,0.00012283,2]
[335976095,1724649041848,-500.0,0.00012283,2]
[335976096,1724649041862,-500.0,0.00012283,2]
[335976097,1724649041872,-500.0,0.00012283,2]
[335976098,1724649041883,-823.46,0.00012283,2]
[335976099,1724649041896,-721.03,0.00012283,2]
[335976100,1724649041906,-573.51,0.00012283,2]
[335976101,1724649041916,-500.0,0.00012283,2]
[335976102,1724649041926,-609.67,0.00012283,2]
[335976103,1724649041936,-500.0,0.00012283,2]
[335976104,1724649041946,-500.0,0.00012283,2]
[335976105,1724649041955,-500.0,0.00012283,2]
[335976106,1724649041965,-500.0,0.00012283,2]
[335976107,1724649041975,-1188.03,0.00012283,2]
[335976108,1724649041984,-500.0,0.00012283,2]
[335976109,1724649041996,-500.0,0.00012283,2]
[335976110,1724649042008,-991.92,0.00012283,2]
[335976111,1724649042019,-500.0,0.00012283,2]
[335976112,1724649042030,-529.81,0.00012283,2]
[335976113,1724649042041,-500.0,0.00012283,2]
[335976114,1724649042052,-11872.55,0.00012283,2]
[335976115,1724649042064,-718.89,0.00012283,2]
[335976116,1724649042074,-500.0,0.00012283,2]
[335976117,1724649042083,-500.0,0.00012283,2]
[335976118,1724649042093,-3163.64,0.00012283,2]
[335976119,1724649042104,-500.0,0.00012283,2]
[335976120,1724649042113,-907.29,0.00012283,2]
[335976121,1724649042123,-701.54,0.00012283,2]
[335976122,1724649042133,-807.87,0.00012283,2]
[335976123,1724649042143,-586.49,0.00012283,2]
[335976124,1724649042154,-500.0,0.00012283,2]
[335976125,1724649042165,-619.29788985,0.00012283,2]
[335976126,1724649042175,-890.36,0.00012283,2]
[335976127,1724649042186,-539.88,0.00012283,2]
[335976128,1724649042196,-500.0,0.00012283,2]
[335976129,1724649042206,-4142.01,0.00012283,2]
[335976130,1724649042216,-500.0,0.00012283,2]
[335976131,1724649042226,-586.15,0.00012283,2]
[335976132,1724649042235,-707.68,0.00012283,2]
[335976133,1724649042245,-500.0,0.00012283,2]
[335976134,1724649042255,-1199.0,0.00012283,2]
[335976135,1724649042264,-594.58425863,0.00012283,2]
[335976136,1724649042274,-500.0,0.00012283,2]
[335976137,1724649042286,-584.16,0.00012283,2]
[335976138,1724649042298,-500.0,0.00012283,2]
[335976139,1724649042310,-549.32,0.00012283,2]
[335976140,1724649042322,-500.0,0.00012283,2]
[335976141,1724649042332,-561.76,0.00012283,2]
[335976142,1724649042342,-509.61189957,0.00012283,2]
[335976143,1724649042353,-1481.24,0.00012283,2]
[335976144,1724649042364,-896.92,0.00012283,2]
[335976145,1724649042374,-4972.42,0.00012283,2]
[335976146,1724649042383,-500.0,0.00012283,2]
[335976147,1724649042393,-685.39,0.00012283,2]
[335976148,1724649042402,-500.0,0.00012283,2]
[335976149,1724649042412,-500.0,0.00012283,2]
[335976151,1724649042422,-594.33799973,0.00012283,2]
[335976152,1724649042433,-500.0,0.00012283,2]
[335976153,1724649042453,-991.5,0.00012283,2]
[335976154,1724649042466,-500.0,0.00012283,2]
[335976155,1724649042476,-500.0,0.00012283,2]
[335976156,1724649042488,-500.0,0.00012283,2]
[335976157,1724649042498,-500.0,0.00012283,2]
[335976158,1724649042510,-783.42,0.00012283,2]
[335976159,1724649042522,-513.7185685,0.00012283,2]
[335976160,1724649042532,-3638.94,0.00012283,2]
[335976161,1724649042542,-500.0,0.00012283,2]
[335976162,1724649042554,-500.0,0.00012283,2]
[335976163,1724649042566,-1088.09,0.00012283,2]
[335976164,1724649042576,-1180.36,0.00012283,2]
[335976165,1724649042588,-744.15,0.00012283,2]
[335976166,1724649042598,-710.17,0.00012283,2]
[335976167,1724649042608,-1187.51,0.00012283,2]
[335976168,1724649042622,-500.0,0.00012283,2]
[335976169,1724649042635,-508.44,0.00012283,2]
[335976170,1724649042647,-500.0,0.00012283,2]
[335976172,1724649042658,-500.0,0.00012283,2]
[335976175,1724649042669,-29650.33,0.00012283,2]
[335976176,1724649042679,-981.14,0.00012283,2]
[335976177,1724649042689,-500.0,0.00012283,2]
[335976178,1724649042699,-701.87,0.00012283,2]
[335976179,1724649042709,-500.0,0.00012283,2]
[335976180,1724649042720,-500.0,0.00012283,2]
[335976181,1724649042730,-679.8,0.00012283,2]
[335976182,1724649042740,-805.49,0.00012283,2]
[335976183,1724649042751,-610.2,0.00012283,2]
[335976184,1724649042761,-515.6513176,0.00012283,2]
[335976185,1724649042772,-500.0,0.00012283,2]
[335976186,1724649042784,-500.0,0.00012283,2]
[335976187,1724649042794,-500.0,0.00012283,2]
[335976188,1724649042803,-500.0,0.00012283,2]
[335976189,1724649042813,-788.75,0.00012283,2]
[335976190,1724649042824,-500.0,0.00012283,2]
[335976191,1724649042835,-675.28,0.00012283,2]
[335976192,1724649042845,-593.07,0.00012283,2]
[335976193,1724649042855,-500.0,0.00012283,2]
[335976194,1724649042867,-1718.49,0.00012283,2]
[335976195,1724649042876,-1398.35,0.00012283,2]
[335976196,1724649042886,-500.0,0.00012283,2]
[335976197,1724649042896,-500.0,0.00012283,2]
[335976198,1724649042906,-520.05,0.00012283,2]
[335976199,1724649042916,-500.0,0.00012283,2]
[335976200,1724649042926,-570.42,0.00012283,2]
[335976201,1724649042936,-2491.26,0.00012283,2]
[335976202,1724649042946,-500.0,0.00012283,2]
[335976203,1724649042955,-10459.86,0.00012283,2]
[335976204,1724649042966,-500.0,0.00012283,2]
[335976205,1724649042976,-551.82664872,0.00012283,2]
[335976206,1724649042987,-629.3,0.00012283,2]
[335976207,1724649042997,-868.7,0.00012283,2]
[335976208,1724649043007,-5482.6,0.00012283,2]
[335976209,1724649043017,-768.14,0.00012283,2]
[335976210,1724649043026,-830.31,0.00012283,2]
[335976211,1724649043037,-761.71,0.00012283,2]
[335976212,1724649043046,-550.31,0.00012283,2]
[335976213,1724649043056,-214.63893041,0.00012283,2]
[335976214,1724649043067,-709.68,0.00012283,2]
[335976215,1724649043078,-522.0,0.00012283,2]
[335976216,1724649043091,-1224.79,0.00012283,2]
[335976217,1724649043102,-1272.23,0.00012283,2]
[335976218,1724649043112,-533.64,0.00012283,2]
[335976219,1724649043122,-500.0,0.00012283,2]
[335976220,1724649043133,-500.0,0.00012283,2]
[335976221,1724649043142,-1094.05,0.00012283,2]
[335976222,1724649043154,-552.49,0.00012283,2]
[335976223,1724649043167,-524.22,0.00012283,2]
[335976225,1724649043178,-500.0,0.00012283,2]
[335976226,1724649043192,-500.0,0.00012283,2]
[335976228,1724649043202,-333.43068512,0.00012283,2]
[335976230,1724649043211,-500.0,0.00012283,2]
[335976232,1724649043220,-500.0,0.00012283,2]
[335976233,1724649043230,-500.0,0.00012283,2]
[335976235,1724649043240,-7499.03,0.00012283,2]
[335976238,1724649043250,-1451.82,0.00012283,2]
[335976239,1724649043260,-153.01881869,0.00012283,2]
[335976240,1724649043271,-500.0,0.00012283,2]
[335976241,1724649043280,-693.44,0.00012283,2]
[335976242,1724649043290,-686.76,0.00012283,2]
[335976243,1724649043300,-514.44,0.00012283,2]
[335976244,1724649043310,-587.37,0.00012283,2]
[335976245,1724649043320,-500.0,0.00012283,2]
[335976246,1724649043330,-179.5585462,0.00012283,2]
[335976247,1724649043340,-500.0,0.00012283,2]
[335976248,1724649043349,-895.25,0.00012283,2]
[335976249,1724649043359,-500.0,0.00012283,2]
[335976250,1724649043369,-500.0,0.00012283,2]
[335976251,1724649043379,-500.0,0.00012283,2]
[335976252,1724649043390,-500.0,0.00012283,2]
[335976253,1724649043399,-668.09,0.00012283,2]
[335976254,1724649043409,-2456.83,0.00012283,2]
[335976255,1724649043419,-375.43545941,0.00012283,2]
[335976256,1724649043432,-10505.82,0.00012283,2]
[335976257,1724649043442,-500.0,0.00012283,2]
[335976258,1724649043452,-827.03,0.00012283,2]
[335976259,1724649043464,-1111.15,0.00012283,2]
[335976260,1724649043473,-500.0,0.00012283,2]
[335976261,1724649043486,-596.97,0.00012283,2]
[335976262,1724649043496,-500.0,0.00012283,2]
[335976263,1724649043508,-548.14,0.00012283,2]
[335976264,1724649043518,-538.39,0.00012283,2]
[335976265,1724649043530,-500.0,0.00012283,2]
[335976266,1724649043542,-500.0,0.00012283,2]
[335976267,1724649043553,-500.0,0.00012283,2]
[335976268,1724649043564,-648.35,0.00012283,2]
[335976269,1724649043573,-554.51,0.00012283,2]
[335976270,1724649043584,-500.0,0.00012283,2]
[335976271,1724649043595,-562.31,0.00012283,2]
[335976272,1724649043606,-565.43,0.00012283,2]
[335976273,1724649043617,-500.0,0.00012283,2]
[335976274,1724649043629,-945.04,0.00012283,2]
[335976275,1724649043639,-503.52,0.00012283,2]
[335976276,1724649043651,-500.0,0.00012283,2]
[335976277,1724649043662,-850.29,0.00012283,2]
[335976278,1724649043672,-500.0,0.00012283,2]
[335976279,1724649043681,-338.3643911,0.00012283,2]
[335976280,1724649043691,-500.0,0.00012283,2]
[335976281,1724649043704,-2819.77,0.00012283,2]
[335976282,1724649043714,-865.47,0.00012283,2]
[335976283,1724649043725,-337.80461224,0.00012283,2]
[335976284,1724649043736,-500.0,0.00012283,2]
[335976285,1724649043746,-645.28,0.00012283,2]
[335976286,1724649043757,-500.0,0.00012283,2]
[335976287,1724649043767,-500.0,0.00012283,2]
[335976288,1724649043781,-699.5,0.00012283,2]
[335976289,1724649043790,-227.21152061,0.00012283,2]
[335976290,1724649043799,-670.07,0.00012283,2]
[335976291,1724649043809,-1103.64,0.00012283,2]
[335976292,1724649043819,-500.0,0.00012283,2]
[335976293,1724649043829,-565.55,0.00012283,2]
[335976294,1724649043839,-1743.4,0.00012284,2]
[335976295,1724649043848,-1743.4,0.00012284,2]
[335976296,1724649043861,-1743.4,0.00012284,2]
[335976297,1724649043871,-1743.4,0.00012284,2]
[335976298,1724649043881,-1743.4,0.00012284,2]
[335976299,1724649043890,-1743.52343276,0.00012284,2]
[335976300,1724649043901,-500.0,0.00012284,2]
[335976301,1724649043910,-156.26293579,0.00012284,2]
[335976302,1724649043919,-500.0,0.00012284,2]
[335976303,1724649043930,-500.0,0.00012284,2]
[335976304,1724649043939,-500.0,0.00012284,2]
[335976305,1724649043950,-500.0,0.00012284,2]
[335976306,1724649043960,-582.58,0.00012284,2]
[335976307,1724649043969,-500.0,0.00012284,2]
[335976308,1724649043978,-647.39,0.00012284,2]
[335976309,1724649043988,-500.0,0.00012284,2]
[335976310,1724649043998,-500.0,0.00012284,2]
[335976311,1724649044007,-500.0,0.00012284,2]
[335976312,1724649044016,-546.62,0.00012284,2]
[335976313,1724649044026,-500.0,0.00012284,2]
[335976314,1724649044036,-162.21700301,0.00012284,2]
[335976315,1724649044045,-500.0,0.00012284,2]
[335976316,1724649044055,-500.0,0.00012284,2]
[335976317,1724649044064,-500.0,0.00012284,2]
[335976318,1724649044074,-500.0,0.00012284,2]
[335976319,1724649044084,-500.0,0.00012284,2]
[335976320,1724649044093,-568.82,0.00012284,2]
[335976321,1724649044104,-500.0,0.00012284,2]
[335976322,1724649044114,-500.0,0.00012284,2]
[335976323,1724649044124,-500.0,0.00012284,2]
[335976324,1724649044133,-500.0,0.00012284,2]
[335976325,1724649044143,-500.0,0.00012284,2]
[335976326,1724649044152,-500.0,0.00012284,2]
[335976327,1724649044161,-500.0,0.00012284,2]
[335976328,1724649044171,-500.0,0.00012284,2]
[335976329,1724649044181,-500.0,0.00012284,2]
[335976330,1724649044191,-442.40203144,0.00012284,2]
[335976331,1724649044200,-503.71410313,0.00012284,2]
[335976332,1724649044210,-500.0,0.00012284,2]
[335976333,1724649044219,-550.38,0.00012284,2]
[335976334,1724649044230,-500.0,0.00012284,2]
[335976335,1724649044240,-500.0,0.00012284,2]
[335976336,1724649044249,-545.51459698,0.00012284,2]
[335976337,1724649044259,-500.0,0.00012284,2]
[335976338,1724649044269,-566.66976765,0.00012284,2]
[335976339,1724649044279,-753.93,0.00012284,2]
[335976340,1724649044289,-500.0,0.00012284,2]
[335976341,1724649044299,-500.0,0.00012284,2]
[335976342,1724649044308,-824.25,0.00012284,2]
[335976343,1724649044317,-500.0,0.00012284,2]
[335976344,1724649044327,-500.0,0.00012284,2]
[335976345,1724649044336,-500.0,0.00012284,2]
[335976346,1724649044346,-519.23,0.00012284,2]
[335976347,1724649044356,-500.0,0.00012284,2]
[335976348,1724649044365,-551.14639096,0.00012284,2]
[335976349,1724649044375,-528.11,0.00012284,2]
[335976350,1724649044385,-500.0,0.00012284,2]
[335976351,1724649044394,-500.0,0.00012284,2]
[335976352,1724649044404,-500.0,0.00012284,2]
[335976353,1724649044413,-500.0,0.00012284,2]
[335976354,1724649044423,-603.47,0.00012284,2]
[335976355,1724649044432,-500.0,0.00012284,2]
[335976356,1724649044441,-731.56,0.00012284,2]
[335976357,1724649044450,-500.0,0.00012284,2]
[335976358,1724649044460,-500.0,0.00012284,2]
[335976359,1724649044470,-500.0,0.00012284,2]
[335976360,1724649044479,-591.24,0.00012284,2]
[335976361,1724649044488,-867.45,0.00012284,2]
[335976362,1724649044498,-552.71,0.00012284,2]
[335976363,1724649044508,-785.63,0.00012284,2]
[335976364,1724649044517,-500.0,0.00012284,2]
[335976365,1724649044526,-500.0,0.00012284,2]
[335976366,1724649044536,-500.0,0.00012284,2]
[335976367,1724649044545,-744.49,0.00012284,2]
[335976368,1724649044555,-500.0,0.00012284,2]
[335976369,1724649044564,-500.0,0.00012284,2]
[335976370,1724649044573,-711.36,0.00012284,2]
[335976371,1724649044582,-500.0,0.00012284,2]
[335976372,1724649044592,-500.0,0.00012284,2]
[335976373,1724649044601,-500.0,0.00012284,2]
[335976374,1724649044611,-503.0854609,0.00012284,2]
[335976375,1724649044620,-592.77987138,0.00012284,2]
[335976376,1724649044629,-500.0,0.00012284,2]
[335976377,1724649044640,-671.22,0.00012284,2]
[335976378,1724649044650,-500.0,0.00012284,2]
[335976379,1724649044659,-500.0,0.00012284,2]
[335976380,1724649044669,-689.91,0.00012284,2]
[335976381,1724649044678,-500.0,0.00012284,2]
[335976382,1724649044687,-490.97913741,0.00012284,2]
[335976383,1724649044697,-842.96,0.00012284,2]
[335976384,1724649044706,-1345.74,0.00012284,2]
[335976385,1724649044716,-500.0,0.00012284,2]
[335976386,1724649044726,-929.31,0.00012284,2]
[335976387,1724649044737,-500.0,0.00012284,2]
[335976388,1724649044746,-686.14,0.00012284,2]
[335976389,1724649044756,-806.75,0.00012284,2]
[335976390,1724649044766,-652.57,0.00012284,2]
[335976391,1724649044780,-692.43,0.00012284,2]
[335976392,1724649044789,-762.28,0.00012284,2]
[335976393,1724649044798,-500.0,0.00012284,2]
[335976394,1724649044809,-500.0,0.00012284,2]
[335976395,1724649044818,-500.0,0.00012284,2]
[335976396,1724649044828,-500.0,0.00012284,2]
[335976397,1724649044837,-500.0,0.00012284,2]
[335976398,1724649044847,-500.0,0.00012284,2]
[335976399,1724649044860,-500.0,0.00012284,2]
[335976400,1724649044870,-500.0,0.00012284,2]
[335976401,1724649044879,-500.0,0.00012285,2]
[335976402,1724649044892,-381.7653579,0.00012285,2]
[335976403,1724649044902,-500.0,0.00012285,2]
[335976404,1724649044911,-533.70271463,0.00012285,2]
[335976405,1724649044921,-500.0,0.00012285,2]
[335976406,1724649044930,-498.95215855,0.00012285,2]
[335976407,1724649044940,-2167.77324026,0.00012356,2]
[335976408,1724649044950,-2144.32657805,0.00012516,2]
[335976409,1724649044959,-284.0,0.00012537,2]
[335976410,1724649044969,-284.0,0.00012537,2]
[335976411,1724649045186,-284.0,0.00012537,2]
[335976412,1724649045196,-284.0,0.00012537,2]
[335976413,1724649045205,-284.0,0.00012537,2]
[335976414,1724649045215,-284.0,0.00012537,2]
[335976415,1724649045225,-284.0,0.00012537,2]
[335976416,1724649045234,-284.0,0.00012537,2]
[335976417,1724649045243,-284.0,0.00012537,2]
[335976418,1724649045253,-284.0,0.00012537,2]
[335976419,1724649045262,-284.0,0.00012537,2]
[335976420,1724649045272,-284.0,0.00012537,2]
[335976421,1724649045282,-284.0,0.00012537,2]
[335976422,1724649045292,-284.0,0.00012537,2]
[335976423,1724649045301,-522.0,0.00012537,2]
[335976424,1724649045311,-522.0,0.00012537,2]
[335976425,1724649045321,-522.0,0.00012537,2]
[335976426,1724649045331,-522.0,0.00012537,2]
[335976427,1724649045340,-522.0,0.00012537,2]
[335976429,1724649045349,-522.0,0.00012537,2]
[335976430,1724649045359,-522.0,0.00012537,2]
[335976431,1724649045368,-522.0,0.00012537,2]
[335976432,1724649045378,-522.0,0.00012537,2]
[335976433,1724649045392,-522.0,0.00012537,2]
[335976434,1724649045401,-522.0,0.00012537,2]
[335976435,1724649045411,-522.0,0.00012537,2]
[335976436,1724649045420,-522.0,0.00012537,2]
[335976437,1724649045429,-522.0,0.00012537,2]
[335976438,1724649045439,-285.0,0.00012537,2]
[335976439,1724649045448,-285.0,0.00012537,2]
[335976440,1724649045457,-285.0,0.00012537,2]
[335976441,1724649045467,-285.0,0.00012537,2]
[335976442,1724649045477,-285.0,0.00012537,2]
[335976443,1724649045486,-285.0,0.00012537,2]
[335976444,1724649045495,-285.0,0.00012537,2]
[335976445,1724649045504,-285.0,0.00012537,2]
[335976447,1724649045514,-285.0,0.00012537,2]
[335976448,1724649045524,-285.0,0.00012537,2]
[335976449,1724649045533,-285.0,0.00012537,2]
[335976450,1724649045542,-285.0,0.00012537,2]
[335976451,1724649045552,-285.0,0.00012537,2]
[335976452,1724649045561,-285.0,0.00012537,2]
[335976453,1724649045571,-523.0,0.00012537,2]
[335976454,1724649045580,-523.0,0.00012537,2]
[335976455,1724649045589,-523.0,0.00012537,2]
[335976456,1724649045599,-523.0,0.00012537,2]
[335976457,1724649045610,-523.0,0.00012537,2]
[335976458,1724649045619,-523.0,0.00012537,2]
[335976459,1724649045628,-523.0,0.00012537,2]
[335976460,1724649045639,-523.0,0.00012537,2]
[335976461,1724649045649,-523.0,0.00012537,2]
[335976462,1724649045659,-523.0,0.00012537,2]
[335976463,1724649045668,-523.0,0.00012537,2]
[335976465,1724649045678,-523.0,0.00012537,2]
[335976467,1724649045689,-523.0,0.00012537,2]
[335976469,1724649045699,-523.0,0.00012537,2]
[335976471,1724649045709,-284.0,0.00012537,2]
[335976473,1724649045718,-284.0,0.00012537,2]
[335976475,1724649045728,-284.0,0.00012537,2]
[335976477,1724649045737,-284.0,0.00012537,2]
[335976479,1724649045746,-284.0,0.00012537,2]
[335976482,1724649045755,-284.0,0.00012537,2]
[335976484,1724649045765,-284.0,0.00012537,2]
[335976485,1724649045776,-284.0,0.00012537,2]
[335976488,1724649045786,-284.0,0.00012537,2]
[335976490,1724649045795,-284.0,0.00012537,2]
[335976492,1724649045804,-522.0,0.00012537,2]
[335976494,1724649045814,-522.0,0.00012537,2]
[335976496,1724649045826,-522.0,0.00012537,2]
[335976498,1724649045837,-522.0,0.00012537,2]
[335976500,1724649045849,-522.0,0.00012537,2]
[335976502,1724649045861,-522.0,0.00012537,2]
[335976504,1724649045870,-522.0,0.00012537,2]